[Event "SM-blixten 2025"]
[Site "Uppsala, Sweden"]
[Date "2025.07.03"]
[Round "8.8"]
[White "Ljung, Harald"]
[Black "Nilsson, Joakim"]
[Result "0-1"]
[TimeControl "3 min + 2 sec increment starting from move 1"]
[BlackTitle "FM"]
[WhiteElo "2194"]
[BlackElo "2208"]

1. d4 {[%clk 00:03:03]} {[%emt 00:01:57]} Nf6 {[%clk 00:03:03]} {[%emt
00:00:02]} 2. Nf3 {[%clk 00:03:04]} {[%emt 00:00:01]} g6 {[%clk 00:03:02]}
{[%emt 00:00:02]} 3. g3 {[%clk 00:03:05]} {[%emt 00:00:02]} Bg7 {[%clk
00:03:03]} 4. Bg2 {[%clk 00:03:07]} O-O {[%clk 00:03:04]} {[%emt 00:00:01]} 5.
O-O {[%clk 00:03:07]} {[%emt 00:00:02]} Ne4 {[%clk 00:03:02]} {[%emt 00:00:03]}
6. c4 {[%clk 00:02:59]} {[%emt 00:00:11]} d6 {[%clk 00:03:00]} {[%emt
00:00:04]} 7. Nc3 {[%clk 00:02:58]} {[%emt 00:00:03]} Nxc3 {[%clk 00:03:00]}
{[%emt 00:00:02]} 8. bxc3 {[%clk 00:02:59]} {[%emt 00:00:01]} Nc6 {[%clk
00:03:01]} 9. e4 {[%clk 00:02:53]} {[%emt 00:00:08]} b6 {[%clk 00:02:54]}
{[%emt 00:00:10]} 10. Be3 {[%clk 00:02:50]} {[%emt 00:00:04]} Ba6 {[%clk
00:02:54]} {[%emt 00:00:02]} 11. Nd2 {[%clk 00:02:49]} {[%emt 00:00:03]} Na5
{[%clk 00:02:55]} {[%emt 00:00:01]} 12. Qa4 {[%clk 00:02:47]} {[%emt 00:00:03]}
Rc8 {[%clk 00:02:51]} {[%emt 00:00:06]} 13. Rfe1 {[%clk 00:02:40]} {[%emt
00:00:08]} Qe8 {[%clk 00:02:52]} {[%emt 00:00:02]} 14. Qxe8 {[%clk 00:02:17]}
{[%emt 00:00:25]} Rfxe8 {[%clk 00:02:53]} {[%emt 00:00:01]} 15. Bh3 {[%clk
00:02:06]} {[%emt 00:00:13]} e6 {[%clk 00:02:46]} {[%emt 00:00:08]} 16. Rac1
{[%clk 00:02:02]} {[%emt 00:00:04]} Nxc4 {[%clk 00:02:45]} {[%emt 00:00:06]} 17.
Nxc4 {[%clk 00:01:51]} {[%emt 00:00:13]} Bxc4 {[%clk 00:02:46]} {[%emt
00:00:01]} 18. a4 {[%clk 00:01:52]} {[%emt 00:00:01]} a5 {[%clk 00:02:42]}
{[%emt 00:00:06]} 19. f4 {[%clk 00:01:48]} {[%emt 00:00:06]} f5 {[%clk
00:02:35]} {[%emt 00:00:08]} 20. d5 {[%clk 00:01:14]} {[%emt 00:00:37]} Bd3
{[%clk 00:01:54]} {[%emt 00:00:43]} 21. exf5 {[%clk 00:00:59]} {[%emt
00:00:17]} exf5 {[%clk 00:01:54]} {[%emt 00:00:02]} 22. Kf2 {[%clk 00:00:36]}
{[%emt 00:00:25]} Re7 {[%clk 00:01:46]} {[%emt 00:00:10]} 23. Bd2 {[%clk
00:00:18]} {[%emt 00:00:20]} Rce8 {[%clk 00:01:47]} {[%emt 00:00:01]} 24. Re3
{[%clk 00:00:18]} {[%emt 00:00:02]} Bc4 {[%clk 00:01:42]} {[%emt 00:00:07]} 25.
Bg2 {[%clk 00:00:16]} {[%emt 00:00:04]} Rxe3 {[%clk 00:01:37]} {[%emt
00:00:07]} 26. Bxe3 {[%clk 00:00:17]} {[%emt 00:00:01]} Bb3 {[%clk 00:01:38]}
27. h3 {[%clk 00:00:10]} {[%emt 00:00:10]} Bxa4 {[%clk 00:01:37]} {[%emt
00:00:03]} 28. g4 {[%clk 00:00:11]} {[%emt 00:00:01]} Bd7 {[%clk 00:01:35]}
{[%emt 00:00:05]} 29. g5 {[%clk 00:00:10]} {[%emt 00:00:02]} Bb5 {[%clk
00:01:34]} {[%emt 00:00:03]} 30. c4 {[%clk 00:00:10]} {[%emt 00:00:02]} Ba4
{[%clk 00:01:34]} {[%emt 00:00:02]} 31. Bf1 {[%clk 00:00:09]} {[%emt 00:00:03]}
Bb3 {[%clk 00:01:34]} 32. Bd2 {[%clk 00:00:04]} {[%emt 00:00:08]} Bd4+ {[%clk
00:01:33]} {[%emt 00:00:03]} 33. Kf3 {[%clk 00:00:04]} {[%emt 00:00:02]} a4
{[%clk 00:01:31]} {[%emt 00:00:04]} 0-1

[Event "SM-blixten 2025"]
[Site "Uppsala, Sweden"]
[Date "2025.07.03"]
[Round "10.4"]
[White "Jonsson, Mikael"]
[Black "Malmstig, Erik"]
[Result "0-1"]
[TimeControl "3 min + 2 sec increment starting from move 1"]
[BlackTitle "FM"]
[WhiteElo "2204"]
[BlackElo "2231"]

1. e4 {[%clk 00:03:01]} {[%emt 00:00:02]} c5 {[%clk 00:03:03]} {[%emt
00:00:02]} 2. Nf3 {[%clk 00:03:01]} {[%emt 00:00:01]} d6 {[%clk 00:03:03]}
{[%emt 00:00:02]} 3. d4 {[%clk 00:03:02]} {[%emt 00:00:02]} cxd4 {[%clk
00:03:04]} {[%emt 00:00:01]} 4. Nxd4 {[%clk 00:03:02]} {[%emt 00:00:02]} Nf6
{[%clk 00:03:05]} {[%emt 00:00:01]} 5. Nc3 {[%clk 00:03:03]} {[%emt 00:00:01]}
Bd7 {[%clk 00:03:06]} {[%emt 00:00:02]} 6. Bg5 {[%clk 00:02:59]} {[%emt
00:00:04]} e6 {[%clk 00:03:07]} {[%emt 00:00:02]} 7. Qd2 {[%clk 00:02:55]}
{[%emt 00:00:06]} a6 {[%clk 00:03:06]} {[%emt 00:00:03]} 8. O-O-O {[%clk
00:02:52]} {[%emt 00:00:05]} h6 {[%clk 00:03:06]} {[%emt 00:00:02]} 9. Bxf6
{[%clk 00:02:50]} {[%emt 00:00:04]} Qxf6 {[%clk 00:03:04]} {[%emt 00:00:03]} 10.
f4 {[%clk 00:02:48]} {[%emt 00:00:04]} Nc6 {[%clk 00:02:55]} {[%emt 00:00:12]}
11. Nf3 {[%clk 00:02:48]} {[%emt 00:00:02]} g5 {[%clk 00:02:55]} {[%emt
00:00:02]} 12. e5 {[%clk 00:02:32]} {[%emt 00:00:18]} Qxf4 {[%clk 00:02:43]}
{[%emt 00:00:14]} 13. Qxf4 {[%clk 00:02:28]} {[%emt 00:00:06]} gxf4 {[%clk
00:02:44]} {[%emt 00:00:01]} 14. exd6 {[%clk 00:02:28]} {[%emt 00:00:02]} O-O-O
{[%emt 00:00:19]} 15. Bc4 {[%clk 00:01:47]} {[%emt 00:00:38]} Rg8 {[%clk
00:02:12]} {[%emt 00:00:21]} 16. Rd2 {[%clk 00:01:42]} {[%emt 00:00:08]} Bg7
{[%clk 00:01:28]} {[%emt 00:00:46]} 17. Ne4 {[%clk 00:01:38]} {[%emt 00:00:06]}
Na5 {[%clk 00:01:24]} {[%emt 00:00:06]} 18. Bb3 {[%clk 00:01:17]} {[%emt
00:00:23]} b6 {[%clk 00:01:10]} {[%emt 00:00:16]} 19. Re1 {[%clk 00:01:12]}
{[%emt 00:00:06]} Nb7 {[%clk 00:01:08]} {[%emt 00:00:05]} 20. Nd4 {[%clk
00:00:47]} {[%emt 00:00:27]} Bxd4 {[%clk 00:00:58]} {[%emt 00:00:12]} 21. Rxd4
{[%clk 00:00:47]} {[%emt 00:00:02]} Rxg2 {[%clk 00:00:58]} {[%emt 00:00:01]} 22.
Nf6 {[%clk 00:00:45]} {[%emt 00:00:04]} Bc6 {[%clk 00:00:48]} {[%emt 00:00:13]}
23. Rxf4 {[%clk 00:00:30]} {[%emt 00:00:17]} Nxd6 {[%clk 00:00:47]} {[%emt
00:00:03]} 24. Rh4 {[%clk 00:00:30]} {[%emt 00:00:02]} Nf5 {[%clk 00:00:42]}
{[%emt 00:00:07]} 25. Rh3 {[%clk 00:00:26]} {[%emt 00:00:06]} Kb7 {[%clk
00:00:40]} {[%emt 00:00:04]} 26. Rd1 {[%clk 00:00:14]} {[%emt 00:00:14]} Rxd1+
{[%clk 00:00:31]} 27. Kxd1 {[%clk 00:00:15]} b5 {[%clk 00:00:29]} {[%emt
00:00:05]} 28. Nh5 {[%clk 00:00:07]} {[%emt 00:00:09]} a5 {[%clk 00:00:27]}
{[%emt 00:00:05]} 29. Nf4 {[%clk 00:00:06]} {[%emt 00:00:02]} Rf2 {[%clk
00:00:26]} {[%emt 00:00:02]} 30. Nd3 {[%clk 00:00:07]} {[%emt 00:00:02]} Rf3
{[%clk 00:00:21]} {[%emt 00:00:06]} 31. Rxf3 {[%clk 00:00:03]} {[%emt
00:00:07]} Bxf3+ {[%clk 00:00:22]} {[%emt 00:00:01]} 32. Kd2 {[%clk 00:00:03]}
{[%emt 00:00:02]} a4 {[%clk 00:00:24]} 33. Nc5+ {[%emt 00:00:04]} Kb6 0-1

[Event "SM-blixten 2025"]
[Site "Uppsala, Sweden"]
[Date "2025.07.03"]
[Round "11.10"]
[White "Tagesson, Bjorn"]
[Black "Tuomainen, Felix"]
[Result "0-1"]
[TimeControl "3 min + 2 sec increment starting from move 1"]
[BlackTitle "FM"]
[WhiteElo "2142"]
[BlackElo "2215"]

1. e4 {[%clk 00:03:01]} {[%emt 00:00:02]} d6 {[%clk 00:03:03]} {[%emt
00:00:01]} 2. d4 {[%clk 00:03:02]} {[%emt 00:00:02]} g6 {[%clk 00:03:04]}
{[%emt 00:00:01]} 3. Nc3 {[%clk 00:03:02]} {[%emt 00:00:01]} Bg7 {[%clk
00:03:05]} 4. f4 {[%clk 00:02:49]} {[%emt 00:00:17]} Nf6 {[%clk 00:03:06]} 5.
Nf3 {[%clk 00:02:47]} {[%emt 00:00:03]} O-O {[%clk 00:03:06]} {[%emt 00:00:02]}
6. Bd3 {[%clk 00:02:35]} {[%emt 00:00:14]} c6 {[%clk 00:03:07]} {[%emt
00:00:01]} 7. O-O {[%clk 00:02:32]} {[%emt 00:00:05]} b5 {[%clk 00:03:06]}
{[%emt 00:00:02]} 8. h3 {[%clk 00:02:24]} {[%emt 00:00:10]} a5 {[%clk
00:03:07]} {[%emt 00:00:03]} 9. Be3 {[%clk 00:02:19]} {[%emt 00:00:07]} Ba6
{[%clk 00:03:04]} {[%emt 00:00:05]} 10. g4 {[%clk 00:02:08]} {[%emt 00:00:11]}
Nbd7 {[%clk 00:02:53]} {[%emt 00:00:14]} 11. Ne2 {[%clk 00:02:07]} {[%emt
00:00:04]} c5 {[%clk 00:02:49]} {[%emt 00:00:07]} 12. c3 {[%clk 00:02:06]}
{[%emt 00:00:02]} b4 {[%clk 00:02:40]} {[%emt 00:00:11]} 13. Ng3 {[%clk
00:02:05]} {[%emt 00:00:02]} Qb6 {[%clk 00:02:15]} {[%emt 00:00:28]} 14. Rf2
{[%clk 00:02:05]} {[%emt 00:00:01]} Rac8 {[%clk 00:02:14]} {[%emt 00:00:04]} 15.
f5 {[%clk 00:01:59]} {[%emt 00:00:07]} bxc3 {[%clk 00:02:00]} {[%emt 00:00:16]}
16. bxc3 {[%clk 00:01:59]} {[%emt 00:00:02]} cxd4 {[%clk 00:02:00]} {[%emt
00:00:02]} 17. cxd4 {[%clk 00:01:59]} {[%emt 00:00:02]} Bxd3 {[%clk 00:01:58]}
{[%emt 00:00:05]} 18. Qxd3 {[%clk 00:02:00]} {[%emt 00:00:01]} Qc6 {[%clk
00:01:51]} {[%emt 00:00:09]} 19. g5 {[%clk 00:01:43]} {[%emt 00:00:18]} Ne8
{[%clk 00:01:52]} {[%emt 00:00:02]} 20. Rc1 {[%clk 00:01:44]} {[%emt 00:00:01]}
Qa8 {[%clk 00:01:53]} 21. e5 {[%clk 00:01:37]} {[%emt 00:00:08]} Rxc1+ {[%clk
00:01:53]} {[%emt 00:00:02]} 22. Bxc1 {[%clk 00:01:38]} {[%emt 00:00:01]} dxe5
{[%clk 00:01:44]} {[%emt 00:00:11]} 23. fxg6 {[%clk 00:01:36]} {[%emt
00:00:03]} hxg6 {[%clk 00:01:37]} {[%emt 00:00:09]} 24. Ba3 {[%clk 00:01:19]}
{[%emt 00:00:19]} Nd6 {[%clk 00:01:31]} {[%emt 00:00:08]} 25. dxe5 {[%clk
00:01:17]} {[%emt 00:00:03]} Nxe5 {[%clk 00:01:30]} {[%emt 00:00:03]} 26. Nxe5
{[%clk 00:00:48]} {[%emt 00:00:32]} Bxe5 {[%clk 00:01:31]} {[%emt 00:00:01]} 27.
Re2 {[%clk 00:00:49]} Qa7+ {[%clk 00:01:21]} {[%emt 00:00:12]} 28. Kg2 {[%clk
00:00:41]} {[%emt 00:00:09]} Bf4 {[%clk 00:01:15]} {[%emt 00:00:09]} 29. Ne4
{[%clk 00:00:32]} {[%emt 00:00:10]} Nxe4 {[%clk 00:01:11]} {[%emt 00:00:06]} 30.
Rxe4 {[%clk 00:00:33]} {[%emt 00:00:01]} Bxg5 {[%clk 00:01:10]} {[%emt
00:00:04]} 31. Rg4 {[%clk 00:00:29]} {[%emt 00:00:05]} Bf6 {[%clk 00:01:02]}
{[%emt 00:00:11]} 32. h4 {[%clk 00:00:28]} {[%emt 00:00:03]} Qb7+ {[%clk
00:00:57]} {[%emt 00:00:07]} 33. Kh3 {[%clk 00:00:25]} {[%emt 00:00:04]} Qh1+
{[%clk 00:00:57]} {[%emt 00:00:02]} 34. Kg3 {[%clk 00:00:24]} {[%emt 00:00:03]}
Be5+ {[%clk 00:00:56]} {[%emt 00:00:04]} 35. Kf2 {[%clk 00:00:20]} {[%emt
00:00:05]} Qh2+ {[%clk 00:00:53]} {[%emt 00:00:06]} 36. Kf1 {[%clk 00:00:11]}
{[%emt 00:00:10]} Bf6 {[%clk 00:00:34]} {[%emt 00:00:22]} 37. Bxe7 {[%emt
00:00:11]} 0-1

[Event "SM-blixten 2025"]
[Site "Uppsala, Sweden"]
[Date "2025.07.03"]
[Round "2.5"]
[White "Olund, Joar"]
[Black "Kingsley, Elias"]
[Result "1-0"]
[TimeControl "3 min + 2 sec increment starting from move 1"]
[WhiteTitle "FM"]
[WhiteElo "2369"]
[BlackElo "2072"]

1. Nf3 {[%clk 00:03:03]} {[%emt 00:00:01]} Nf6 {[%emt 00:00:01]} 2. b3 c5
{[%clk 00:03:01]} {[%emt 00:00:04]} 3. Bb2 {[%clk 00:03:06]} Nc6 {[%clk
00:02:56]} {[%emt 00:00:06]} 4. g3 {[%clk 00:02:59]} {[%emt 00:00:09]} b6
{[%clk 00:02:50]} {[%emt 00:00:08]} 5. Bg2 {[%clk 00:02:59]} {[%emt 00:00:02]}
Bb7 {[%clk 00:02:50]} {[%emt 00:00:02]} 6. O-O {[%clk 00:02:57]} {[%emt
00:00:04]} g6 {[%clk 00:02:46]} {[%emt 00:00:06]} 7. d4 {[%clk 00:02:58]} cxd4
{[%clk 00:02:47]} {[%emt 00:00:01]} 8. Nxd4 {[%emt 00:00:02]} Bg7 {[%clk
00:02:43]} {[%emt 00:00:05]} 9. c4 {[%clk 00:02:59]} {[%emt 00:00:02]} O-O
{[%clk 00:02:40]} {[%emt 00:00:05]} 10. Nc3 {[%clk 00:03:00]} {[%emt 00:00:01]}
Rc8 {[%clk 00:02:34]} {[%emt 00:00:08]} 11. Rc1 {[%clk 00:03:00]} {[%emt
00:00:02]} a6 {[%clk 00:02:19]} {[%emt 00:00:17]} 12. Qd2 {[%clk 00:02:56]}
{[%emt 00:00:05]} Qc7 {[%clk 00:02:20]} {[%emt 00:00:02]} 13. Nd5 {[%clk
00:02:54]} {[%emt 00:00:04]} Qd8 {[%clk 00:02:19]} {[%emt 00:00:03]} 14. Nxc6
{[%clk 00:02:32]} {[%emt 00:00:24]} dxc6 {[%clk 00:02:18]} {[%emt 00:00:03]} 15.
Nxf6+ {[%clk 00:02:32]} {[%emt 00:00:02]} Bxf6 {[%clk 00:02:04]} {[%emt
00:00:16]} 16. Qxd8 {[%clk 00:02:32]} {[%emt 00:00:02]} Rfxd8 {[%clk 00:02:04]}
{[%emt 00:00:02]} 17. Bxf6 {[%clk 00:02:32]} {[%emt 00:00:01]} exf6 {[%clk
00:02:05]} {[%emt 00:00:02]} 18. Rfd1 {[%clk 00:02:34]} Kf8 {[%clk 00:02:02]}
{[%emt 00:00:05]} 19. Kf1 {[%clk 00:01:47]} {[%emt 00:00:48]} Ke7 {[%clk
00:02:02]} {[%emt 00:00:03]} 20. Ke1 {[%clk 00:01:33]} {[%emt 00:00:16]} Ba8
{[%clk 00:01:57]} {[%emt 00:00:07]} 21. h4 {[%clk 00:01:32]} {[%emt 00:00:03]}
c5 {[%clk 00:01:54]} {[%emt 00:00:05]} 22. Bxa8 {[%clk 00:01:14]} {[%emt
00:00:20]} Rxa8 {[%clk 00:01:55]} {[%emt 00:00:01]} 23. e4 {[%clk 00:01:08]}
{[%emt 00:00:08]} Rxd1+ {[%clk 00:01:03]} {[%emt 00:00:54]} 24. Rxd1 {[%clk
00:01:08]} {[%emt 00:00:01]} Rd8 {[%clk 00:01:03]} {[%emt 00:00:02]} 25. Rd5
{[%clk 00:00:58]} {[%emt 00:00:12]} Rd6 {[%clk 00:01:04]} {[%emt 00:00:01]} 26.
Ke2 {[%clk 00:00:58]} {[%emt 00:00:02]} Ke6 {[%clk 00:01:05]} {[%emt 00:00:02]}
27. g4 {[%clk 00:00:50]} {[%emt 00:00:10]} Rd7 {[%clk 00:00:54]} {[%emt
00:00:12]} 28. Ke3 {[%clk 00:00:49]} {[%emt 00:00:04]} Rd6 {[%clk 00:00:53]}
{[%emt 00:00:03]} 29. a4 {[%clk 00:00:41]} {[%emt 00:00:10]} a5 {[%clk
00:00:48]} {[%emt 00:00:07]} 30. f4 {[%clk 00:00:42]} {[%emt 00:00:01]} h6
{[%clk 00:00:20]} {[%emt 00:00:30]} 31. f5+ {[%clk 00:00:41]} {[%emt 00:00:02]}
Ke7 {[%clk 00:00:17]} {[%emt 00:00:05]} 32. fxg6 {[%clk 00:00:07]} {[%emt
00:00:37]} fxg6 {[%clk 00:00:17]} {[%emt 00:00:02]} 33. Kf4 {[%clk 00:00:07]}
{[%emt 00:00:01]} Re6 {[%clk 00:00:06]} {[%emt 00:00:13]} 34. h5 {[%clk
00:00:06]} {[%emt 00:00:04]} Rd6 {[%clk 00:00:03]} {[%emt 00:00:05]} 35. Rxd6
{[%clk 00:00:07]} {[%emt 00:00:01]} Kxd6 {[%clk 00:00:04]} {[%emt 00:00:01]} 36.
hxg6 {[%clk 00:00:08]} Ke6 {[%clk 00:00:06]} 37. Kg3 {[%clk 00:00:08]} {[%emt
00:00:03]} 1-0

[Event "SM-blixten 2025"]
[Site "Uppsala, Sweden"]
[Date "2025.07.03"]
[Round "4.1"]
[White "Galperin, Platon"]
[Black "Tadjerbashi, Amir"]
[Result "1-0"]
[TimeControl "3 min + 2 sec increment starting from move 1"]
[WhiteTitle "GM"]
[WhiteElo "2506"]
[BlackElo "2235"]

1. Nf3 {[%clk 00:03:02]} {[%emt 00:00:02]} Nf6 {[%clk 00:03:03]} {[%emt
00:00:01]} 2. c4 {[%clk 00:03:02]} {[%emt 00:00:02]} e6 {[%clk 00:03:03]}
{[%emt 00:00:02]} 3. b3 {[%clk 00:03:02]} {[%emt 00:00:02]} d5 {[%clk
00:03:03]} {[%emt 00:00:01]} 4. Bb2 {[%clk 00:03:02]} {[%emt 00:00:02]} Be7
{[%clk 00:03:04]} {[%emt 00:00:01]} 5. e3 {[%clk 00:03:01]} {[%emt 00:00:03]}
Nbd7 {[%clk 00:02:41]} {[%emt 00:00:26]} 6. Nc3 {[%clk 00:03:00]} {[%emt
00:00:03]} c6 {[%clk 00:02:38]} {[%emt 00:00:05]} 7. g3 {[%clk 00:02:56]}
{[%emt 00:00:05]} O-O {[%clk 00:02:37]} {[%emt 00:00:04]} 8. d4 {[%clk
00:02:53]} {[%emt 00:00:05]} a5 {[%clk 00:02:35]} {[%emt 00:00:04]} 9. Bg2
{[%clk 00:02:53]} {[%emt 00:00:02]} Bd6 {[%clk 00:02:30]} {[%emt 00:00:07]} 10.
O-O {[%clk 00:02:52]} {[%emt 00:00:03]} Qe7 {[%clk 00:02:31]} {[%emt 00:00:01]}
11. Qc2 {[%clk 00:02:51]} {[%emt 00:00:02]} dxc4 {[%clk 00:02:16]} {[%emt
00:00:17]} 12. bxc4 {[%clk 00:02:52]} {[%emt 00:00:02]} e5 {[%clk 00:02:17]}
{[%emt 00:00:01]} 13. Nh4 {[%clk 00:02:52]} {[%emt 00:00:02]} g6 {[%clk
00:02:17]} {[%emt 00:00:02]} 14. Rfe1 {[%clk 00:02:48]} {[%emt 00:00:05]} Re8
{[%clk 00:02:18]} {[%emt 00:00:02]} 15. Nf3 {[%clk 00:02:39]} {[%emt 00:00:11]}
Ba3 {[%clk 00:01:19]} {[%emt 00:01:01]} 16. Bxa3 {[%clk 00:02:07]} {[%emt
00:00:34]} Qxa3 {[%clk 00:01:20]} {[%emt 00:00:01]} 17. c5 {[%clk 00:02:08]}
{[%emt 00:00:01]} Nd5 {[%clk 00:01:04]} {[%emt 00:00:18]} 18. Nxd5 {[%clk
00:01:59]} {[%emt 00:00:10]} cxd5 {[%clk 00:01:05]} {[%emt 00:00:01]} 19. Reb1
{[%clk 00:01:18]} {[%emt 00:00:44]} e4 {[%clk 00:00:41]} {[%emt 00:00:26]} 20.
Nd2 {[%clk 00:01:11]} {[%emt 00:00:08]} b6 {[%clk 00:00:42]} {[%emt 00:00:02]}
21. Bf1 {[%clk 00:00:41]} {[%emt 00:00:31]} bxc5 {[%clk 00:00:35]} {[%emt
00:00:09]} 22. Rb3 {[%clk 00:00:41]} {[%emt 00:00:03]} 1-0

[Event "SM-blixten 2025"]
[Site "Uppsala, Sweden"]
[Date "2025.07.03"]
[Round "5.7"]
[White "Berovski, Krum"]
[Black "Muntean, Victor"]
[Result "0-1"]
[TimeControl "3 min + 2 sec increment starting from move 1"]
[WhiteElo "2344"]
[BlackElo "2140"]

1. d4 {[%clk 00:03:02]} {[%emt 00:00:02]} Nf6 {[%clk 00:03:04]} {[%emt
00:00:01]} 2. c4 {[%clk 00:03:03]} {[%emt 00:00:01]} a6 {[%clk 00:03:05]}
{[%emt 00:00:01]} 3. e3 {[%clk 00:02:50]} {[%emt 00:00:14]} e6 {[%clk
00:03:02]} {[%emt 00:00:05]} 4. Nc3 {[%clk 00:02:49]} {[%emt 00:00:03]} d5
{[%clk 00:02:58]} {[%emt 00:00:05]} 5. Nf3 {[%clk 00:02:49]} {[%emt 00:00:02]}
dxc4 {[%clk 00:02:56]} {[%emt 00:00:05]} 6. Bxc4 {[%clk 00:02:50]} {[%emt
00:00:01]} b5 {[%clk 00:02:57]} {[%emt 00:00:02]} 7. Be2 {[%clk 00:02:32]}
{[%emt 00:00:19]} Bb7 {[%clk 00:02:58]} {[%emt 00:00:01]} 8. O-O {[%clk
00:02:32]} {[%emt 00:00:02]} Be7 {[%clk 00:02:59]} {[%emt 00:00:01]} 9. Ne5
{[%clk 00:02:14]} {[%emt 00:00:20]} O-O {[%clk 00:02:48]} {[%emt 00:00:13]} 10.
Bf3 {[%clk 00:02:14]} {[%emt 00:00:01]} Nd5 {[%clk 00:02:39]} {[%emt 00:00:11]}
11. e4 {[%clk 00:01:54]} {[%emt 00:00:23]} Nf6 {[%clk 00:02:37]} {[%emt
00:00:04]} 12. a3 {[%clk 00:01:23]} {[%emt 00:00:33]} Nbd7 {[%clk 00:02:37]}
{[%emt 00:00:02]} 13. Nxd7 {[%clk 00:01:13]} {[%emt 00:00:13]} Qxd7 {[%clk
00:02:36]} {[%emt 00:00:03]} 14. Be3 {[%clk 00:01:07]} {[%emt 00:00:07]} a5
{[%clk 00:02:30]} {[%emt 00:00:08]} 15. Qc2 {[%clk 00:00:45]} {[%emt 00:00:24]}
b4 {[%clk 00:02:28]} {[%emt 00:00:03]} 16. axb4 {[%clk 00:00:40]} {[%emt
00:00:07]} axb4 {[%clk 00:02:29]} 17. Ne2 {[%clk 00:00:30]} {[%emt 00:00:12]}
Rfc8 {[%clk 00:02:00]} {[%emt 00:00:32]} 18. Ng3 {[%clk 00:00:26]} {[%emt
00:00:06]} Qb5 {[%clk 00:01:50]} {[%emt 00:00:11]} 19. Rxa8 Bxa8 {[%clk
00:01:51]} 20. Be2 {[%clk 00:00:19]} {[%emt 00:00:06]} Qa5 {[%clk 00:01:38]}
{[%emt 00:00:15]} 21. f3 {[%clk 00:00:19]} {[%emt 00:00:02]} c5 {[%clk
00:01:34]} {[%emt 00:00:07]} 22. Rc1 {[%clk 00:00:20]} Rc6 {[%clk 00:01:21]}
{[%emt 00:00:15]} 23. dxc5 {[%clk 00:00:19]} {[%emt 00:00:03]} Nd7 {[%clk
00:01:23]} 24. Qd2 {[%clk 00:00:12]} {[%emt 00:00:09]} Nxc5 {[%clk 00:01:20]}
{[%emt 00:00:05]} 25. Nh5 {[%clk 00:00:05]} {[%emt 00:00:09]} Nb3 {[%clk
00:01:11]} {[%emt 00:00:11]} 26. Rxc6 {[%clk 00:00:06]} Nxd2 {[%clk 00:01:00]}
{[%emt 00:00:13]} 27. Rc8+ {[%clk 00:00:07]} Bf8 {[%clk 00:01:01]} {[%emt
00:00:02]} 28. Bc5 {[%clk 00:00:08]} Qxc5+ {[%clk 00:01:02]} {[%emt 00:00:01]}
29. Rxc5 {[%clk 00:00:09]} Bxc5+ {[%clk 00:01:03]} {[%emt 00:00:01]} 30. Kh1
{[%clk 00:00:10]} Bd6 {[%clk 00:00:56]} {[%emt 00:00:09]} 31. f4 {[%clk
00:00:09]} {[%emt 00:00:03]} Nxe4 {[%clk 00:00:54]} {[%emt 00:00:04]} 0-1